fUST/lending_fUST_20250603
["ID","MTS","AMOUNT","RATE_DAILY","PERIOD"]
[363938879,1748940641771,-934.45,0.00018082,2]
[363938880,1748940641783,-440.0,0.00018082,2]
[363938881,1748940641792,-440.0,0.00018082,2]
[363938882,1748940641802,-440.0,0.00018082,2]
[363938883,1748940641811,-459.14,0.00018082,2]
[363938884,1748940641822,-446.85,0.00018082,2]
[363938885,1748940641832,-440.0,0.00018082,2]
[363938886,1748940641842,-440.0,0.00018082,2]
[363938887,1748940641851,-519.26,0.00018082,2]
[363938888,1748940641861,-164.0,0.00018082,3]
[363938889,1748940641871,-1126.75263286,0.00018141,2]
[363938890,1748940641881,-1000.0,0.00018174,7]
[363938891,1748940641891,-1000.0,0.00018174,2]
[363938892,1748940641901,-1000.0,0.00018174,7]
[363938893,1748940641911,-168.28517098,0.00018257,2]
[363938894,1748940641921,-524.84911325,0.00018275,2]
[363938895,1748940641931,-440.0,0.00018356,2]
[363938896,1748940641940,-392.67521261,0.00018356,2]
[363938897,1748940641950,-440.0,0.00018356,2]
[363938898,1748940641959,-1692.18,0.00018356,2]
[363938899,1748940641969,-724.15,0.00018356,2]
[363938900,1748940641979,-915.75,0.00018356,2]
[363938901,1748940641988,-193.63,0.00018356,2]
[363938902,1748940641998,-711.14,0.00018356,2]
[363938903,1748940642009,-707.6,0.00018356,2]
[363938904,1748940642019,-440.0,0.00018356,2]
[363938905,1748940642028,-1031.3,0.00018356,2]
[363938906,1748940642038,-1049.34,0.00018356,2]
[363938907,1748940642048,-934.45,0.00018356,2]
[363938908,1748940642058,-440.0,0.00018356,2]
[363938909,1748940642068,-440.0,0.00018356,2]
[363938910,1748940642077,-440.0,0.00018356,2]
[363938911,1748940642087,-459.14,0.00018356,2]
[363938912,1748940642097,-446.85,0.00018356,2]
[363938913,1748940642107,-440.0,0.00018356,2]
[363938914,1748940642116,-380.26206632,0.00018356,2]
[363938915,1748940642126,-519.26,0.00018356,2]
[363938916,1748940642136,-1126.75263286,0.00018383,2]
[363938917,1748940642146,-500.0,0.00018488,2]
[363938918,1748940642156,-500.0,0.00018488,2]
[363938919,1748940642166,-207.4,0.00018619,2]
[363938920,1748940642176,-430.0,0.00018619,2]
[363938921,1748940642185,-1126.75263286,0.00018624,2]
[363938922,1748940642195,-440.0,0.0001863,2]
[363938923,1748940642206,-440.0,0.0001863,2]
[363938924,1748940642216,-1692.18,0.0001863,2]
[363938925,1748940642226,-724.15,0.0001863,2]
[363938926,1748940642236,-915.75,0.0001863,2]
[363938927,1748940642246,-711.14,0.0001863,2]
[363938928,1748940642255,-707.6,0.0001863,2]
[363938929,1748940642266,-440.0,0.0001863,2]
[363938930,1748940642275,-1031.3,0.0001863,2]
[363938931,1748940642285,-1049.34,0.0001863,2]
[363938932,1748940642295,-934.45,0.0001863,2]
[363938933,1748940642305,-440.0,0.0001863,2]
[363938934,1748940642315,-440.0,0.0001863,2]
[363938935,1748940642326,-440.0,0.0001863,2]
[363938936,1748940642336,-459.14,0.0001863,2]
[363938937,1748940642346,-446.85,0.0001863,2]
[363938938,1748940642356,-440.0,0.0001863,2]
[363938939,1748940642366,-519.26,0.0001863,2]
[363938940,1748940642376,-500.0,0.00018705,2]
[363938942,1748940642385,-519.18762381,0.00018715,2]
[363938944,1748940642396,-500.0,0.00018726,2]
[363938946,1748940642405,-509.51775153,0.00018726,2]
[363938947,1748940642415,-524.84911325,0.00018817,2]
[363938948,1748940642424,-481.56516768,0.00018823,2]
[363938949,1748940642434,-1126.75263286,0.00018866,2]
[363938950,1748940642443,-153.36431858,0.00018904,2]
[363938951,1748940642453,-440.0,0.00018904,2]
[363938952,1748940642464,-1692.18,0.00018904,2]
[363938953,1748940642474,-724.15,0.00018904,2]
[363938954,1748940642485,-915.75,0.00018904,2]
[363938955,1748940642495,-711.14,0.00018904,2]
[363938957,1748940642505,-707.6,0.00018904,2]
[363938959,1748940642514,-440.0,0.00018904,2]
[363938961,1748940642524,-1031.3,0.00018904,2]
[363938963,1748940642534,-1049.34,0.00018904,2]
[363938965,1748940642543,-934.45,0.00018904,2]
[363938967,1748940642554,-440.0,0.00018904,2]
[363938969,1748940642563,-440.0,0.00018904,2]
[363938971,1748940642572,-440.0,0.00018904,2]
[363938973,1748940642582,-459.14,0.00018904,2]
[363938975,1748940642591,-446.85,0.00018904,2]
[363938977,1748940642600,-440.0,0.00018904,2]
[363938979,1748940642610,-519.26,0.00018904,2]
[363938981,1748940642619,-507.80432617,0.00018923,2]
[363938983,1748940642629,-1126.75263286,0.00019107,2]
[363938985,1748940642639,-181.19807031,0.00019168,2]
[363938987,1748940642649,-440.0,0.00019178,2]
[363938989,1748940642658,-1692.18,0.00019178,2]
[363938991,1748940642667,-724.15,0.00019178,2]
[363938993,1748940642676,-915.75,0.00019178,2]
[363938995,1748940642685,-711.14,0.00019178,2]
[363938997,1748940642694,-707.6,0.00019178,2]
[363938999,1748940642704,-440.0,0.00019178,2]
[363939001,1748940642717,-1031.3,0.00019178,2]
[363939003,1748940642726,-1049.34,0.00019178,2]
[363939005,1748940642736,-934.45,0.00019178,2]
[363939007,1748940642745,-440.0,0.00019178,2]
[363939009,1748940642755,-440.0,0.00019178,2]
[363939011,1748940642764,-440.0,0.00019178,2]
[363939013,1748940642774,-459.14,0.00019178,2]
[363939015,1748940642784,-446.85,0.00019178,2]
[363939017,1748940642794,-440.0,0.00019178,2]
[363939019,1748940642804,-519.26,0.00019178,2]
[363939021,1748940642813,-151.0,0.00019178,2]
[363939022,1748940642822,-166.51784,0.00019178,2]
[363939023,1748940642832,-156.587,0.00019233,2]
[363939024,1748940642841,-162.380719,0.00019288,2]
[363939025,1748940642850,-168.3888056,0.00019343,2]
[363939026,1748940642859,-1126.75263286,0.00019348,2]
[363939027,1748940642868,-524.84911325,0.00019358,2]
[363939028,1748940642878,-174.61919141,0.00019398,2]
[363939029,1748940642888,-570.38639309,0.00019452,2]
[363939031,1748940642897,-1692.18,0.00019452,2]
[363939033,1748940642907,-724.15,0.00019452,2]
[363939035,1748940642916,-915.75,0.00019452,2]
[363939036,1748940642926,-711.14,0.00019452,2]
[363939037,1748940642936,-707.6,0.00019452,2]
[363939038,1748940642945,-440.0,0.00019452,2]
[363939039,1748940642955,-1031.3,0.00019452,2]
[363939040,1748940642965,-1049.34,0.00019452,2]
[363939041,1748940642974,-934.45,0.00019452,2]
[363939042,1748940642983,-440.0,0.00019452,2]
[363939043,1748940642993,-440.0,0.00019452,2]
[363939044,1748940643002,-440.0,0.00019452,2]
[363939045,1748940643011,-459.14,0.00019452,2]
[363939046,1748940643020,-446.85,0.00019452,2]
[363939047,1748940643029,-440.0,0.00019452,2]
[363939048,1748940643039,-519.26,0.00019452,2]
[363939049,1748940643048,-181.08010149,0.00019453,2]
[363939051,1748940643058,-187.78006525,0.00019508,2]
[363939052,1748940643068,-194.72792766,0.00019563,2]
[363939053,1748940643077,-1126.75263286,0.0001959,2]
[363939055,1748940643087,-1303.979275,0.00019599,2]
[363939057,1748940643097,-250.0,0.000196,30]
[363939059,1748940643106,-201.93286099,0.00019618,2]
[363939061,1748940643116,-209.40437684,0.00019673,2]
[363939063,1748940643126,-1692.18,0.00019726,2]
[363939065,1748940643135,-724.15,0.00019726,2]
[363939067,1748940643145,-915.75,0.00019726,2]
[363939069,1748940643155,-711.14,0.00019726,2]
[363939071,1748940643164,-707.6,0.00019726,2]
[363939073,1748940643174,-440.0,0.00019726,2]
[363939075,1748940643183,-1031.3,0.00019726,2]
[363939077,1748940643193,-1049.34,0.00019726,2]
[363939079,1748940643203,-934.45,0.00019726,2]
[363939081,1748940643212,-440.0,0.00019726,2]
[363939083,1748940643222,-321.31,0.00019726,2]
[363939085,1748940643231,-440.0,0.00019726,2]
[363939087,1748940643241,-446.85,0.00019726,2]
[363939089,1748940643251,-440.0,0.00019726,2]
[363939091,1748940643260,-519.26,0.00019726,2]
[363939093,1748940643270,-217.15233878,0.00019728,2]
[363939095,1748940643279,-616.175,0.00019762,2]
[363939097,1748940643289,-225.18697532,0.00019783,2]
[363939099,1748940643299,-32205.7151354,0.00019798,2]
[363939102,1748940643309,-182.11792983,0.000198,2]
[363939104,1748940643318,-500.0,0.000198,2]
[363939106,1748940643328,-84011.0,0.000198,2]
[363939108,1748940643337,-32352.81930117,0.000198,2]
[363939110,1748940643347,-185.0,0.000198,2]
[363939112,1748940643356,-153.0,0.00019808,2]
[363939114,1748940643366,-1126.75263286,0.00019831,2]
[363939116,1748940643375,-233.51889341,0.00019838,2]
[363939117,1748940643385,-242.15909246,0.00019893,2]
[363939119,1748940643394,-185.0,0.000199,2]
[363939120,1748940643404,-185.0,0.000199,2]
[363939122,1748940643414,-185.0,0.000199,2]
[363939124,1748940643423,-185.0,0.000199,3]
[363939126,1748940643432,-185.0,0.000199,3]
[363939128,1748940643442,-185.0,0.000199,3]
[363939129,1748940643452,-524.84911325,0.000199,2]
[363939132,1748940643463,-251.11897888,0.00019948,2]
[363939134,1748940643473,-500.0,0.00019973,2]
[363939136,1748940643483,-500.91748917,0.00019973,2]
[363939151,1748940643612,-500.92514887,0.00019973,2]
[363939153,1748940643623,-513.98861648,0.00019973,2]
[363939155,1748940643633,-500.0,0.00019973,2]
[363939157,1748940643642,-500.0,0.00019973,2]
[363939159,1748940643652,-500.0,0.00019973,2]
[363939161,1748940643661,-501.90722136,0.00019973,2]
[363939163,1748940643671,-500.0,0.00019973,2]
[363939165,1748940643680,-163.5396541,0.00019973,2]
[363939167,1748940643690,-500.0,0.00019973,2]
[363939169,1748940643699,-600.0,0.00019973,2]
[363939171,1748940643710,-500.0,0.00019973,2]
[363939173,1748940643720,-185.0,0.0001998,3]
[363939175,1748940643729,-185.0,0.0001998,5]
[363939177,1748940643739,-185.0,0.0001998,5]
[363939179,1748940643748,-185.0,0.0001998,5]
[363939181,1748940643758,-215.0738,0.00019988,2]
[363939183,1748940643768,-375.86446478,0.0001999,2]
[363939185,1748940643780,-500.0,0.00019999,2]
[363939187,1748940643789,-500.0,0.00019999,2]
[363939189,1748940643799,-500.0,0.00019999,2]
[363939191,1748940643809,-500.0,0.00019999,2]
[363939194,1748940643819,-500.0,0.00019999,2]
[363939196,1748940643828,-500.0,0.00019999,2]
[363939198,1748940643838,-500.0,0.00019999,2]
[363939200,1748940643848,-413.77870257,0.00019999,2]
[363939202,1748940643858,-500.0,0.00019999,2]
[363939204,1748940643868,-500.0,0.00019999,2]
[363939206,1748940643877,-500.0,0.00019999,2]
[363939208,1748940643887,-500.0,0.00019999,2]
[363939210,1748940643896,-500.0,0.00019999,2]
[363939212,1748940643906,-450.0,0.00019999,2]
[363939214,1748940643917,-842.5625,0.0002,3]
[363939216,1748940643927,-12670.76136593,0.0002,3]
[363939218,1748940643936,-14452.02762936,0.0002,2]
[363939220,1748940643952,-2759.23893936,0.0002,2]
[363939259,1748940644319,-872.23335984,0.00017808,2]
[363939261,1748940644331,-75.57664016,0.00017808,2]
[363939263,1748940644340,-947.81,0.00018082,2]
[363939265,1748940644350,-947.81,0.00018356,2]
[363939267,1748940644360,-947.81,0.0001863,2]
[363939269,1748940644370,-947.81,0.00018904,2]
[363939271,1748940644379,-947.81,0.00019178,2]
[363939273,1748940644389,-947.81,0.00019452,2]
[363939275,1748940644400,-623.60785906,0.00019726,2]
[363939277,1748940644412,-324.20214094,0.00019726,2]
[363939279,1748940644421,-10959.07249217,0.0002,2]
[363939281,1748940644431,-212.86879254,0.0002,3]
[363939283,1748940644441,-16169.15302297,0.0002,3]
[363939285,1748940644450,-314.94761707,0.0002,3]
[363939287,1748940644459,-10106.01561207,0.0002,2]
[363939289,1748940644471,-203604.40964959,0.0002,2]
[363939291,1748940644483,-691.15,0.0002,2]
[363939447,1748940645968,-12672.64401917,0.0002,2]
[363939450,1748940645980,-331.266836,0.0002,2]
[363939452,1748940645992,-5517.92748661,0.0002,2]
[363939456,1748940646023,-324.65567513,0.0002,2]
[363939578,1748941025114,826.06630597,0.00024658,120]
[363939579,1748941035843,518.64435971,0.00016,2]
[363939580,1748941035868,2597.44081002,0.00016,2]
[363939581,1748941050875,200.0,0.00024325,120]
[363939582,1748941052205,150.5,0.00023278,120]
[363939583,1748941052673,150.5,0.00023268,120]
[363939584,1748941053152,279.95,0.00023258,120]
[363939585,1748941114170,208.0,0.00024658,120]
[363939667,1748941170803,200.0,0.00023784,120]
[363939668,1748941184872,826.06630597,0.00024658,120]
[363939669,1748941191033,-168.28517098,0.00016338,2]
[363939670,1748941191056,-160.0,0.00016437,2]
[363939671,1748941191077,-430.0,0.00016438,2]
[363939672,1748941191100,-405.47137417,0.00016438,2]
[363939673,1748941191126,-432.07848328,0.00016438,2]
[363939674,1748941191149,-430.0,0.00016438,2]
[363939675,1748941191172,-430.0,0.00016438,2]
[363939676,1748941191195,-430.0,0.00016438,2]
[363939677,1748941191215,-385.77129826,0.00016438,2]
[363939678,1748941191236,-430.0,0.00016438,2]
[363939679,1748941191257,-430.0,0.00016438,2]
[363939680,1748941191278,-440.0,0.00016438,2]
[363939681,1748941191301,-430.0,0.00016438,2]
[363939682,1748941191326,-481.23825487,0.00016438,2]
[363939683,1748941191348,-430.0,0.00016438,2]
[363939684,1748941191370,-430.0,0.00016438,2]
[363939685,1748941191393,-430.0,0.00016438,2]
[363939686,1748941191416,-430.0,0.00016438,2]
[363939687,1748941191439,-500.0,0.00016438,2]
[363939688,1748941191461,-500.0,0.00016438,2]
[363939689,1748941191482,-233.98697092,0.00016438,2]
[363939690,1748941191504,-430.0,0.00016438,2]
[363939691,1748941191530,-430.0,0.00016438,2]
[363939692,1748941191552,-430.0,0.00016438,2]
[363939693,1748941191574,-405.20624908,0.00016438,2]
[363939694,1748941191597,-511.06747058,0.00016438,2]
[363939695,1748941191618,-430.0,0.00016438,2]
[363939696,1748941191639,-430.0,0.00016438,2]
[363939697,1748941191661,-430.0,0.00016438,2]
[363939698,1748941191682,-198.89472786,0.00016438,2]
[363939702,1748941245488,1783997.7400648,0.00024657,120]
[363939704,1748941305139,300.0,0.00024657,120]
[363939708,1748941319493,300.0,0.00024657,120]
[363939715,1748941385557,5000.0,0.00016,2]
[363939716,1748941401385,4388.0,0.00016,2]
[363939717,1748941485514,168.757445,0.00013699,2]
[363939720,1748941702456,765.3183213,0.00015609,2]
[363939721,1748941751542,1161.3,0.00024658,120]
[363939730,1748941770830,200.0,0.00024555,120]
[363939732,1748941772243,150.5,0.0002328,120]
[363939733,1748941772699,150.5,0.0002327,120]
[363939734,1748941773152,279.95,0.0002326,120]
[363939735,1748941807888,157.64638448,6.8e-07,2]
[363939790,1748941837996,-1979.0,0.0001604,2]
[363939792,1748941838006,-500.0,0.00016274,2]
[363939794,1748941838015,-500.0,0.00016274,2]
[363939796,1748941838025,-500.0,0.00016274,2]
[363939798,1748941838035,-500.0,0.00016274,2]
[363939800,1748941838045,-500.0,0.00016274,2]
[363939802,1748941838055,-500.0,0.00016274,2]
[363939804,1748941838064,-500.0,0.00016274,2]
[363939806,1748941838074,-500.0,0.00016274,2]
[363939808,1748941838084,-500.0,0.00016274,2]
[363939810,1748941838093,-500.0,0.00016274,2]
[363939812,1748941838103,-500.0,0.00016274,2]
[363939814,1748941838113,-299.43677421,0.00016274,2]
[363939817,1748941838124,-412.37489737,0.00016438,2]
[363939819,1748941838134,-430.0,0.00016438,2]
[363939821,1748941838144,-420.0,0.00016438,2]
[363939823,1748941838154,-405.4862229,0.00016438,2]
[363939825,1748941838163,-430.0,0.00016438,2]
[363939826,1748941838173,-430.0,0.00016438,2]
[363939828,1748941838182,-430.0,0.00016438,2]
[363939830,1748941838193,-497.35824121,0.00016438,2]
[363939832,1748941838202,-426.17328667,0.00016438,2]
[363939834,1748941838212,-440.0,0.00016438,2]
[363939837,1748941838221,-430.0,0.00016438,2]
[363939839,1748941838231,-430.0,0.00016438,2]
[363939841,1748941838241,-474.75318024,0.00016438,2]
[363939843,1748941838252,-439.96448648,0.00016438,2]
[363939845,1748941838261,-430.0,0.00016438,2]
[363939847,1748941838271,-430.0,0.00016438,2]
[363939849,1748941838283,-371.44406114,0.00016438,2]
[363939851,1748941838294,-431.23975095,0.00016438,2]
[363939853,1748941838304,-430.0,0.00016438,2]
[363939855,1748941838315,-430.0,0.00016438,2]
[363939858,1748941838326,-353.88630268,0.00016438,2]
[363939860,1748941838336,-430.0,0.00016438,2]
[363939862,1748941838346,-307.91795095,0.00016438,2]
[363939864,1748941838357,-505.315503,0.00016438,2]
[363939866,1748941838367,-430.0,0.00016438,2]
[363939868,1748941838377,-430.0,0.00016438,2]
[363939870,1748941838386,-400.0,0.00016438,2]
[363939871,1748941838396,-430.0,0.00016438,2]
[363939873,1748941838406,-430.0,0.00016438,2]
[363939875,1748941838416,-430.0,0.00016438,2]
[363939877,1748941838425,-430.0,0.00016438,2]
[363939879,1748941838435,-430.0,0.00016438,2]
[363939881,1748941838445,-281.45044857,0.00016438,2]
[363939883,1748941838455,-220.0,0.00016438,2]
[363939885,1748941838464,-430.0,0.00016438,2]
[363939887,1748941838474,-363.17553011,0.00016438,2]
[363939889,1748941838483,-430.0,0.00016438,2]
[363939891,1748941838492,-430.0,0.00016438,2]
[363939894,1748941838504,-430.0,0.00016438,2]
[363939896,1748941838513,-440.0,0.00016438,2]
[363939898,1748941838523,-430.0,0.00016438,2]
[363939900,1748941838532,-430.0,0.00016438,2]
[363939902,1748941838541,-430.0,0.00016438,2]
[363939904,1748941838550,-430.0,0.00016438,2]
[363939905,1748941838559,-440.0,0.00016438,2]
[363939907,1748941838569,-430.0,0.00016438,2]
[363939909,1748941838579,-430.0,0.00016438,2]
[363939911,1748941838589,-430.0,0.00016438,2]
[363939913,1748941838598,-430.0,0.00016438,2]
[363939915,1748941838607,-430.0,0.00016438,2]
[363939917,1748941838617,-430.0,0.00016438,2]
[363939919,1748941838626,-401.1167977,0.00016438,2]
[363939921,1748941838635,-433.05810381,0.00016438,2]
[363939923,1748941838645,-434.69142801,0.00016438,2]
[363939925,1748941838653,-430.0,0.00016438,2]
[363939927,1748941838663,-400.0,0.00016438,2]
[363939929,1748941838671,-430.88943557,0.00016438,2]
[363939931,1748941838680,-430.0,0.00016438,2]
[363939933,1748941838690,-430.0,0.00016438,2]
[363939935,1748941838699,-430.0,0.00016438,2]
[363939937,1748941838709,-430.0,0.00016438,2]
[363939939,1748941838718,-440.0,0.00016438,2]
[363939941,1748941838727,-430.0,0.00016438,2]
[363939943,1748941838737,-430.0,0.00016438,2]
[363939945,1748941838745,-430.0,0.00016438,2]
[363939947,1748941838754,-430.0,0.00016438,2]
[363939949,1748941838763,-430.0,0.00016438,2]
[363939951,1748941838774,-440.0,0.00016438,2]
[363939953,1748941838783,-284.78389438,0.00016438,2]
[363939955,1748941838793,-262.33555041,0.00016438,2]
[363939957,1748941838803,-473.17,0.00016438,2]
[363939959,1748941838813,-440.0,0.00016438,2]
[363939961,1748941838821,-430.0,0.00016438,2]
[363939963,1748941838831,-423.70980898,0.00016438,2]
[363939966,1748941838844,-430.0,0.00016438,2]
[363939968,1748941838854,-407.59634751,0.00016438,2]
[363939970,1748941838864,-430.0,0.00016438,2]
[363939972,1748941838874,-430.0,0.00016438,2]
[363939974,1748941838883,-430.0,0.00016438,2]
[363939976,1748941838893,-430.0,0.00016438,2]
[363939978,1748941838903,-430.0,0.00016438,2]
[363939980,1748941838912,-430.0,0.00016438,2]
[363939982,1748941838923,-440.0,0.00016438,2]
[363939984,1748941838933,-430.0,0.00016438,2]
[363939986,1748941838942,-1024.89975299,0.00016438,2]
[363939988,1748941838952,-227.82348034,0.00016438,2]
[363939990,1748941838961,-430.0,0.00016438,2]
[363939992,1748941838971,-430.0,0.00016438,2]
[363939994,1748941838981,-440.0,0.00016438,2]
[363939996,1748941838990,-522.03109554,0.00016438,2]
[363939998,1748941839000,-430.0,0.00016438,2]
[363940000,1748941839013,-440.0,0.00016438,2]
[363940002,1748941839023,-430.0,0.00016438,2]
[363940004,1748941839033,-430.0,0.00016438,2]
[363940006,1748941839043,-440.0,0.00016438,2]
[363940008,1748941839053,-440.0,0.00016438,2]
[363940010,1748941839063,-430.0,0.00016438,2]
[363940012,1748941839073,-430.0,0.00016438,2]
[363940014,1748941839083,-440.0,0.00016438,2]
[363940016,1748941839093,-430.0,0.00016438,2]
[363940018,1748941839103,-430.0,0.00016438,2]
[363940020,1748941839113,-430.0,0.00016438,2]
[363940022,1748941839125,-437.08235146,0.00016438,2]
[363940024,1748941839135,-430.0,0.00016438,2]
[363940026,1748941839145,-440.0,0.00016438,2]
[363940028,1748941839156,-430.0,0.00016438,2]
[363940030,1748941839166,-301.32491024,0.00016438,2]
[363940032,1748941839176,-350.08913176,0.00016438,2]
[363940034,1748941839187,-430.0,0.00016438,2]
[363940036,1748941839197,-430.0,0.00016438,2]
[363940038,1748941839207,-430.0,0.00016438,2]
[363940040,1748941839216,-430.0,0.00016438,2]
[363940042,1748941839226,-556.00547333,0.00016438,2]
[363940044,1748941839236,-440.0,0.00016438,2]
[363940046,1748941839247,-430.0,0.00016438,2]
[363940048,1748941839257,-440.0,0.00016438,2]
[363940050,1748941839269,-430.0,0.00016438,2]
[363940052,1748941839281,-502.40494254,0.00016438,2]
[363940054,1748941839295,-440.0,0.00016438,2]
[363940056,1748941839306,-430.0,0.00016438,2]
[363940058,1748941839317,-430.0,0.00016438,2]
[363940061,1748941839329,-570.0,0.00016438,2]
[363940063,1748941839339,-440.0,0.00016438,2]
[363940065,1748941839350,-430.0,0.00016438,2]
[363940067,1748941839361,-430.0,0.00016438,2]
[363940069,1748941839374,-440.0,0.00016438,2]
[363940071,1748941839385,-430.0,0.00016438,2]
[363940073,1748941839400,-430.0,0.00016438,2]
[363940076,1748941839414,-430.0,0.00016438,2]
[363940078,1748941839424,-431.81720152,0.00016438,2]
[363940080,1748941839435,-430.0,0.00016438,2]
[363940082,1748941839444,-430.0,0.00016438,2]
[363940084,1748941839455,-440.0,0.00016438,2]
[363940086,1748941839465,-561.37850616,0.00016438,2]
[363940088,1748941839476,-430.7358873,0.00016438,2]
[363940090,1748941839486,-430.0,0.00016438,2]
[363940092,1748941839498,-440.0,0.00016438,2]
[363940094,1748941839508,-430.0,0.00016438,2]
[363940096,1748941839518,-430.0,0.00016438,2]
[363940098,1748941839529,-430.0,0.00016438,2]
[363940100,1748941839538,-430.0,0.00016438,2]
[363940102,1748941839548,-431.18140883,0.00016438,2]
[363940104,1748941839558,-431.66729141,0.00016438,2]
[363940106,1748941839569,-400.0,0.00016438,2]
[363940108,1748941839579,-430.0,0.00016438,2]
[363940110,1748941839589,-440.0,0.00016438,2]
[363940112,1748941839599,-430.0,0.00016438,2]
[363940114,1748941839609,-430.0,0.00016438,2]
[363940116,1748941839620,-292.39127783,0.00016438,2]
[363940119,1748941839630,-430.0,0.00016438,2]
[363940121,1748941839641,-430.0,0.00016438,2]
[363940123,1748941839651,-430.0,0.00016438,2]
[363940125,1748941839661,-440.0,0.00016438,2]
[363940127,1748941839671,-433.78185387,0.00016438,2]
[363940129,1748941839681,-430.0,0.00016438,2]
[363940131,1748941839691,-430.0,0.00016438,2]
[363940133,1748941839702,-430.0,0.00016438,2]
[363940135,1748941839712,-430.0,0.00016438,2]
[363940137,1748941839722,-430.0,0.00016438,2]
[363940139,1748941839732,-430.0,0.00016438,2]
[363940141,1748941839742,-430.0,0.00016438,2]
[363940143,1748941839753,-430.0,0.00016438,2]
[363940146,1748941839762,-183.62460969,0.00016438,2]
[363940148,1748941839773,-430.0,0.00016438,2]
[363940149,1748941839782,-430.0,0.00016438,2]
[363940152,1748941839793,-430.0,0.00016438,2]
[363940154,1748941839803,-559.51859478,0.00016438,2]
[363940156,1748941839813,-430.0,0.00016438,2]
[363940158,1748941839824,-440.0,0.00016438,2]
[363940160,1748941839835,-430.0,0.00016438,2]
[363940162,1748941839845,-430.0,0.00016438,2]
[363940164,1748941839855,-430.0,0.00016438,2]
[363940166,1748941839865,-430.0,0.00016438,2]
[363940168,1748941839875,-430.0,0.00016438,2]
[363940170,1748941839886,-440.0,0.00016438,2]
[363940172,1748941839895,-440.0,0.00016438,2]
[363940174,1748941839905,-430.0,0.00016438,2]
[363940176,1748941839914,-440.0,0.00016438,2]
[363940178,1748941839923,-440.0,0.00016438,2]
[363940180,1748941839932,-440.0,0.00016438,2]
[363940182,1748941839942,-430.0,0.00016438,2]
[363940184,1748941839951,-440.0,0.00016438,2]
[363940186,1748941839961,-430.0,0.00016438,2]
[363940188,1748941839972,-375.87908355,0.00016438,2]
[363940190,1748941839985,-430.0,0.00016438,2]
[363940193,1748941840000,-430.0,0.00016438,2]
[363940195,1748941840010,-430.0,0.00016438,2]
[363940196,1748941840020,-459.3458506,0.00016438,2]
[363940198,1748941840030,-381.09025026,0.00016438,2]
[363940201,1748941840040,-278.48948201,0.00016438,2]
[363940203,1748941840049,-440.0,0.00016438,2]
[363940204,1748941840060,-407.53370881,0.00016438,2]
[363940206,1748941840069,-500.0,0.00016438,2]
[363940208,1748941840079,-500.0,0.00016438,2]
[363940211,1748941840090,-574.1,0.00016438,2]
[363940212,1748941840099,-210.04088016,0.00016438,2]
[363940214,1748941840108,-436.98133384,0.00016438,2]
[363940216,1748941840118,-440.0,0.00016438,2]
[363940218,1748941840128,-428.81033719,0.00016438,2]
[363940220,1748941840137,-564.22081151,0.00016438,2]
[363940222,1748941840147,-440.0,0.00016438,2]